Cogmind - Beta 15 @@@ ROGUE MODE // 2025.07.25 @ 00:44:35 Player: jumpy Result: Self-destructed Performance ------------- Evolutions (1) 500 Regions Visited (5) 1000 Robots Destroyed (21) 105 Value Destroyed (258) 258 Prototype IDs (26) 520 Alien Tech Used (0) 0 Bonus (201) 201 TOTAL SCORE: 2584 Bonus ------- Aligned with FarCom 300 Friendly Fire -99 Cogmind --------- Core Integrity 320/400 Matter 120/300 Energy 250/250 System Corruption 0% Temperature Warm (192) Movement Walking (260) Ox2 Location -9/Exiles Parts ------- > --- POWER (1) -------- Ion Engine > --- PROPULSION (3) --- Aluminum Leg Aluminum Leg > --- UTILITY (3) ------ Small Storage Unit Seismic Detector Hardened Medium Armor Plating > --- WEAPON (2) ------- High-powered Shotgun High-powered Shotgun > --- INVENTORY (8) ---- Light Ion Engine Wheel Improved Terrain Scanner Seismic Detector Sensor Drone Bay (20/20) High-powered Shotgun High-powered Shotgun Rocket Launcher Peak State ------------ > --- POWER ------------ Ion Engine > --- PROPULSION ------- Aluminum Leg Aluminum Leg Aluminum Leg > --- UTILITY ---------- Small Storage Unit Seismic Detector Hardened Medium Armor Plating > --- WEAPON ----------- High-powered Shotgun High-powered Shotgun > --- INVENTORY -------- Light Ion Engine Wheel Improved Terrain Scanner Seismic Detector Sensor Drone Bay Assault Rifle High-powered Shotgun Rocket Launcher [Rating: 17] Favorites ----------- Power Ion Engine Engine Ion Engine Propulsion Aluminum Leg Leg Aluminum Leg Utility Small Storage Unit Device Seismic Detector Storage Small Storage Unit Protection Hardened Medium Armor Plating Weapon High-powered Shotgun Energy Gun Medium Laser Ballistic Gun High-powered Shotgun Build | -11 -10 -10 -9 -9 -9 ------- Run | Yrd Mat Min Mat Min Exi Slots Evolved 2 | . . . 2 . . Power . | . . . . . . Propulsion 1 | . . . 1 . . Utility 1 | . . . 1 . . Weapon . | . . . . . . Parts Attached 19 | 8 2 4 5 . . Power 2 | 2 . . . . . Engine 2 | 2 . . . . . Core . | . . . . . . Reactor . | . . . . . . Propulsion 4 | 2 1 . 1 . . Treads . | . . . . . . Leg 4 | 2 1 . 1 . . Wheel . | . . . . . . Hover . | . . . . . . Flight . | . . . . . . Utility 5 | 2 . 2 1 . . Device 3 | 1 . 2 . . . Storage 1 | 1 . . . . . Processor . | . . . . . . Hackware . | . . . . . . Protection 1 | . . . 1 . . Artifact . | . . . . . . Weapon 8 | 2 1 2 3 . . Energy Gun 2 | 1 1 . . . . Energy Cannon . | . . . . . . Ballistic Gun 6 | 1 . 2 3 . . Ballistic Cannon . | . . . . . . Launcher . | . . . . . . Special Weapon . | . . . . . . Impact Weapon . | . . . . . . Slashing Weapon . | . . . . . . Piercing Weapon . | . . . . . . Special Melee Weapon . | . . . . . . Unidentified Prototypes 1 | . . 1 . . . Parts Lost 4 | . 1 . 2 . 1 Power . | . . . . . . Propulsion 2 | . . . 1 . 1 Utility . | . . . . . . Weapon 2 | . 1 . 1 . . Highest Loss Streak 2 | . 1 . 2 . 1 To Critical Strikes . | . . . . . . Average Backups 6 | 3 6 7 7 8 8 Power . | . 1 1 1 1 1 Propulsion 1 | 1 2 3 1 1 1 Utility 2 | . 2 2 3 3 3 Weapon 1 | . 1 1 1 3 3 Tool/Special . | . . . . . . Unused Backups 9 | 1 . 2 . . 6 Power . | . . . . . . Propulsion 2 | . . 1 . . 1 Utility 2 | . . . . . 2 Weapon 5 | 1 . 1 . . 3 Tool/Special . | . . . . . . Average Slot Usage (%) 96 | . 95 100 88 100 100 Engine 12 | . 14 14 11 11 11 Leg 31 | . 28 28 31 33 33 Device 12 | . 14 14 11 11 11 Storage 12 | . 14 14 11 11 11 Protection 5 | . . . 1 11 11 Energy Gun 2 | . 9 7 . . . Ballistic Gun 20 | . 14 20 22 22 22 Peak Build Rating 17 | 7 8 15 17 17 17 Average Rating 10 | 5 6 8 9 17 16 On Entrance 9 | . 7 8 8 17 17 Naked Turns . | . . . . . . Heaviest Build 25 | 14 14 15 25 25 25 Greatest Support 30 | 20 20 20 30 30 30 Greatest Overweight (x) . | . . . . . . Average Overweight (x) . | . . . . . . Largest Inventory Capacity 8 | 8 8 8 8 8 8 Average Capacity 7 | 7 8 8 8 8 8 Most Carried 8 | 6 8 8 8 8 8 Average Carried 6 | 3 6 7 7 8 8 Final Capacity 8 | 8 8 8 8 8 8 Final Carried 8 | 6 8 8 8 8 8 Class Distribution -------------------- 100% | Mutant Dominant Class ---------------- Mutant | -10/Materials Mutant | -10/Mines Mutant | -9/Materials Mutant | -9/Mines Mutant | -9/Exiles Resources | -11 -10 -10 -9 -9 -9 ----------- Run | Yrd Mat Min Mat Min Exi Matter Collected 450 | 305 11 58 76 . . Remotely . | . . . . . . Salvage Created 486 | 260 115 . 111 . . Parts 47 | 24 6 . 17 . . Haulers Intercepted . | . . . . . . Recyclers Shooed 4 | 1 . . 3 . . Parts Field Recycled . | . . . . . . Retrieved Matter . | . . . . . . Parts Self-Destructed . | . . . . . . Prevented . | . . . . . . Kills | -11 -10 -10 -9 -9 -9 ------- Run | Yrd Mat Min Mat Min Exi Combat Hostiles Destroyed 11 | . 3 . 8 . . Guns 11 | . 3 . 8 . . Classes Destroyed 5 | 3 1 . 1 . . Worker 1 | 1 . . . . . Tunneler 8 | 8 . . . . . Recycler 1 | 1 . . . . . Swarmer 8 | . . . 8 . . Grunt 3 | . 3 . . . . Best Kill Streak 5 | 2 1 . 5 . . Combat Bots Only 5 | . 1 . 5 . . Max Kills in Single Turn 1 | 1 1 . 1 . . Gunslinging . | . . . . . . Exploded . | . . . . . . Melee . | . . . . . . Uniques/NPCs Destroyed . | . . . . . . Combat | -11 -10 -10 -9 -9 -9 -------- Run | Yrd Mat Min Mat Min Exi Hostile Shots Fired 119 | . 25 . 63 . 31 Missed 31 | . 6 . 17 . 8 Hits 88 | . 19 . 46 . 23 Projectile 88 | . 19 . 46 . 23 Critical Strikes 5 | . 1 . . . 4 Part Disruptions 3 | . . . . . 3 Damage Taken 970 | . 284 . 358 . 328 Core 155 | . 75 . 53 . 27 Absorbed by Shields . | . . . . . . Core Remaining (%) 85 | 100 . 70 . . . Volleys Fired 80 | 25 24 . 24 . 7 Largest 2 | 2 2 . 2 . 2 Hottest 70 | 70 70 . 40 . 50 Shots Fired 139 | 50 30 . 45 . 14 Gun 139 | 50 30 . 45 . 14 Cannon . | . . . . . . Launcher . | . . . . . . Special . | . . . . . . Kinetic 108 | 25 24 . 45 . 14 Thermal 31 | 25 6 . . . . Explosive . | . . . . . . Electromagnetic . | . . . . . . Robot Hit Streak 14 | 11 14 . 5 . 4 Robot Miss Streak 11 | 3 1 . 11 . 2 Penetration Max . | . . . . . . Secondary Targets 1 | . . . 1 . . Max Gunslinging Chain 1 | . . . 1 . . Shots Hit Robots 88 | 35 26 . 15 . 12 Core Hits 30 | 12 8 . 8 . 2 Critical Kills . | . . . . . . Critical Parts Destroyed . | . . . . . . Critical Strikes 4 | 3 1 . . . . Burn 4 | 3 1 . . . . Melee Attacks . | . . . . . . Impact . | . . . . . . Slashing . | . . . . . . Piercing . | . . . . . . Sneak Attacks . | . . . . . . Combat Hostiles . | . . . . . . Follow-up Attacks . | . . . . . . Damage Inflicted 1044 | 360 217 . 247 . 220 Guns 1044 | 360 217 . 247 . 220 Cannons . | . . . . . . Explosions . | . . . . . . Melee . | . . . . . . Ramming . | . . . . . . Kinetic 787 | 162 158 . 247 . 220 Thermal 257 | 198 59 . . . . Explosive . | . . . . . . Electromagnetic . | . . . . . . Impact . | . . . . . . Slashing . | . . . . . . Piercing . | . . . . . . Highest Corruption . | . . . . . . Average Corruption . | . . . . . . Corruption Purged . | . . . . . . Corruption Blocked . | . . . . . . Overload Shots . | . . . . . . Overflow Damage . | . . . . . . Projectiles . | . . . . . . Explosions . | . . . . . . Melee . | . . . . . . Knockbacks . | . . . . . . Impact . | . . . . . . Kinetic . | . . . . . . Secondary . | . . . . . . Self-Inflicted Damage . | . . . . . . Shots . | . . . . . . Rammed . | . . . . . . Targets Rammed . | . . . . . . Kicked . | . . . . . . Crushed . | . . . . . . Highest Temperature 194 | 70 151 . . . 194 Average Temperature 48 | 29 75 . . . 78 Received Heat Transfer 409 | . 180 . . . 229 Siege Activations . | . . . . . . Martial Activations . | . . . . . . Shielding Activations . | . . . . . . Robots Disrupted . | . . . . . . Combat Hostiles . | . . . . . . Robots Corrupted . | . . . . . . Combat Hostiles . | . . . . . . Parts Fried . | . . . . . . Impact Corruptions . | . . . . . . Robots Melted . | . . . . . . Combat Hostiles . | . . . . . . Parts Melted 1 | 1 . . . . . Heat Transferred 1061 | 814 247 . . . . Parts Sabotaged . | . . . . . . Parts Stolen . | . . . . . . Parts Stripped . | . . . . . . Power Chain Reactions . | . . . . . . Alert | -11 -10 -10 -9 -9 -9 ------- Run | Yrd Mat Min Mat Min Exi Maximum Alert Level . | . . . . . . Low Security (%) 100 | 100 100 100 100 100 . Level 1 . | . . . . . . Level 2 . | . . . . . . Level 3 . | . . . . . . Level 4 . | . . . . . . Level 5 . | . . . . . . High Security . | . . . . . . Max Security . | . . . . . . Peak Influence 151 | 10 45 9 151 46 . Initial 46 | . . 9 . 46 . Average 19 | . 16 . 70 11 . Influence Increases 361 | 50 100 . 211 . . Destroy 0b10 Robot/C 220 | . 60 . 160 . . Destroy 0b10 Robot/NC 50 | 50 . . . . . Destroy Leader 40 | . 20 . 20 . . Successful Hack 5 | . 5 . . . . Destroy Structure 1 | . . . 1 . . Lose Combat Pursuer 45 | . 15 . 30 . . Influence Decreases 361 | 50 75 25 90 121 . Entered New Map 91 | . . 16 . 75 . Time Decay 250 | 50 75 9 70 46 . Lost Part 20 | . . . 20 . . Squads Dispatched 1 | . 1 . . . . Investigation . | . . . . . . Extermination . | . . . . . . Reinforcement 1 | . 1 . . . . Assault . | . . . . . . Garrison . | . . . . . . Intercept . | . . . . . . Searches Triggered . | . . . . . . Construction Impeded . | . . . . . . Haulers Reinforced . | . . . . . . Active Scanning Responses . | . . . . . . Cargo Convoy Interrupts . | . . . . . . Stealth | -11 -10 -10 -9 -9 -9 --------- Run | Yrd Mat Min Mat Min Exi Distress Signals 2 | . 1 . 1 . . Communications Jammed . | . . . . . . Distress Signals . | . . . . . . Times Spotted 30 | . 9 . 13 . 8 Peak Tracking Total 9 | . 4 . 5 . 9 Tactical Retreats 2 | . 1 . 1 . . Traps | -11 -10 -10 -9 -9 -9 ------- Run | Yrd Mat Min Mat Min Exi Traps Triggered . | . . . . . . Indirectly . | . . . . . . Trap Hack Attempts . | . . . . . . Triggered . | . . . . . . Disarmed . | . . . . . . Reprogrammed . | . . . . . . Reused . | . . . . . . Traps Extracted . | . . . . . . Installed . | . . . . . . Triggered . | . . . . . . Machines | -11 -10 -10 -9 -9 -9 ---------- Run | Yrd Mat Min Mat Min Exi Machines Disabled 1 | . . . . . 1 Max in Single Turn . | . . . . . . Machines Repaired . | . . . . . . Machines Dismantled . | . . . . . . Machines Sabotaged . | . . . . . . Overloaded Fab Kills . | . . . . . . Hacking | -11 -10 -10 -9 -9 -9 --------- Run | Yrd Mat Min Mat Min Exi Machines Accessed 4 | . 2 1 . . 1 Terminals 2 | . 2 . . . . Fabricators . | . . . . . . Repair Stations . | . . . . . . Recycling Units . | . . . . . . Scanalyzers . | . . . . . . Garrison Access . | . . . . . . Total Hacks 10 | . 8 1 . . 1 Successful 8 | . 6 1 . . 1 Failed 2 | . 2 . . . . Catastrophic . | . . . . . . Database Lockouts . | . . . . . . Manual 1 | . . . . . 1 Terminals 8 | . 8 . . . . Fabricators . | . . . . . . Repair Stations . | . . . . . . Recycling Units . | . . . . . . Scanalyzers . | . . . . . . Garrison Access . | . . . . . . Terminal Hacks 8 | . 6 1 . . 1 Record 2 | . 2 . . . . Prototype ID Bank 1 | . 1 . . . . Open Door 1 | . . 1 . . . Branch Access Points 1 | . 1 . . . . Dispatch Records 1 | . 1 . . . . Investigation Status 1 | . 1 . . . . Proto ID Catalog 1 | . . . . . 1 Fabricator Hacks . | . . . . . . Repair Station Hacks . | . . . . . . Recycling Unit Hacks . | . . . . . . Scanalyzer . | . . . . . . Garrison Access Hacks . | . . . . . . Unauthorized Hacks . | . . . . . . Terminals . | . . . . . . Fabricators . | . . . . . . Repair Stations . | . . . . . . Recycling Units . | . . . . . . Scanalyzers . | . . . . . . Garrison Access . | . . . . . . Data Cores Recovered . | . . . . . . Used . | . . . . . . Hacking Detections 2 | . 2 . . . . Full Trace Events . | . . . . . . Feedback Events . | . . . . . . Feedback Blocked . | . . . . . . Robot Schematics Acquired . | . . . . . . Robots Built . | . . . . . . Authchips . | . . . . . . Time . | . . . . . . Total Robot Build Rating . | . . . . . . Part Schematics Acquired . | . . . . . . Parts Built . | . . . . . . Authchips . | . . . . . . Time . | . . . . . . Total Part Build Rating . | . . . . . . Parts Repaired . | . . . . . . Time . | . . . . . . Parts Recycled . | . . . . . . Recycled Matter . | . . . . . . Retrieved Matter . | . . . . . . Retrieved Components . | . . . . . . Parts Scanalyzed . | . . . . . . Part Schematics Acquired . | . . . . . . Parts Damaged . | . . . . . . Bothacking | -11 -10 -10 -9 -9 -9 ------------ Run | Yrd Mat Min Mat Min Exi Used RIF Installer . | . . . . . . Robots Hacked . | . . . . . . Non-combat . | . . . . . . Combat . | . . . . . . Robot Hacks Applied . | . . . . . . Relay Couplers Released . | . . . . . . Fabnet Peak Effective % . | . . . . . . Robots Rewired . | . . . . . . Allies Hacked . | . . . . . . Hacks Repelled . | . . . . . . Allies | -11 -10 -10 -9 -9 -9 -------- Run | Yrd Mat Min Mat Min Exi Total Allies 3 | . . . . 3 . Largest Group 3 | . . . . 3 3 Highest-Rated Group 40 | . . . . 40 40 Highest-Rated Ally 16 | . . . . 16 16 Total Orders . | . . . . . . Ally Attacks 8 | . . . . . 8 Total Damage 21 | . . . . . 21 Kills . | . . . . . . Allies Corrupted . | . . . . . . Allies Melted . | . . . . . . Intel | -11 -10 -10 -9 -9 -9 ------- Run | Yrd Mat Min Mat Min Exi Active Infowar (turns) 1298 | 85 210 204 236 214 349 Seismic 1298 | 85 210 204 236 214 349 Robot Analysis Total . | . . . . . . Derelict Logs Recovered 1 | . . 1 . . . Drone Launches . | . . . . . . Drone Recoveries . | . . . . . . Exploration | -11 -10 -10 -9 -9 -9 ------------- Run | Yrd Mat Min Mat Min Exi Turns Passed 1547 | 330 210 208 236 214 349 Spaces Moved 1026 | 205 101 159 128 167 266 Core 5 | 5 . . . . . Treads . | . . . . . . Legs 1021 | 200 101 159 128 167 266 Wheels . | . . . . . . Hover . | . . . . . . Flight . | . . . . . . Fastest Speed 50 | 50 120 120 120 120 120 Average Speed 119 | 118 120 120 120 120 120 Slowest Speed 120 | 120 120 120 120 120 120 Overloaded Moves . | . . . . . . Propulsion Burnouts . | . . . . . . Robots Hopped . | . . . . . . Potential Cave-ins . | . . . . . . Cave-ins Triggered . | . . . . . . Exploration Rate (%) 34 | 10 25 43 23 53 55 Regions Visited 5 Branch Regions 3 Pre-discovered Areas . | . . . . . . Known Exits Taken 1 | . 1 . . . . Unknown Exits Taken 4 | 1 . 1 1 1 . Scrap Searched 1 | . . 1 . . . Spaces Dug . | . . . . . . Terrain Destroyed . | . . . . . . Melee . | . . . . . . Projectile . | . . . . . . AOE . | . . . . . . Terrain Rammed . | . . . . . . Walls Destroyed . | . . . . . . Machines Disabled . | . . . . . . Actions | -11 -10 -10 -9 -9 -9 --------- Run | Yrd Mat Min Mat Min Exi Total 1214 | 244 163 178 168 180 281 Wait 69 | . 36 5 6 14 8 Move 1021 | 204 100 158 127 166 266 Hop . | . . . . . . Pick Up 13 | 6 1 3 3 . . Fast Attach 11 | 7 1 2 1 . . Attach 3 | . . . 3 . . Detach 1 | . . 1 . . . Swap 7 | 1 1 3 2 . . Drop 9 | 1 . 6 2 . . Fire 80 | 25 24 . 24 . 7 Melee . | . . . . . . Ram . | . . . . . . Kick . | . . . . . . Crush . | . . . . . . Escape Stasis . | . . . . . . Rewire . | . . . . . . Trap . | . . . . . . Miscellaneous . | . . . . . . Route ------- -11/Scrapyard -10/Materials -10/Mines -9/Materials -9/Mines (discovered 2 exits: [*Mat] / *Exi) -9/Exiles History --------- Turn | Location | Event 4 | -11/Scrapyard | Discovered new exit (range 15) 331 | -11/Scrapyard | Entered Materials 332 | -10/Materials | Build established: Mutant 360 | -10/Materials | Identified exit to Mines 541 | -10/Materials | Entered Mines 562 | -10/Mines | Met a Derelict bent on vengeance 593 | -10/Mines | Found the Drone Emporium 599 | -10/Mines | Found Prototype Device 599 | -10/Mines | Identified Sensor Drone Bay 630 | -10/Mines | Received a Rocket Launcher from a helpful Derelict 631 | -10/Mines | Found DCF Scrap (12 items) 709 | -10/Mines | Learned 2 Materials zone layouts 740 | -10/Mines | Discovered new exit (range 7) 749 | -10/Mines | Entered Materials 749 | -9/Materials | Evolved 2 slots: Propulsion x1, Utility x1 941 | -9/Materials | Discovered new exit (range 8) 985 | -9/Materials | Entered Mines 1006 | -9/Mines | Discovered new exit (range 7) 1071 | -9/Mines | Assisted by bots powering up and referring to "LRC-V3" 1179 | -9/Mines | Deemed a non-threat by the Exiles lab entrance 1179 | -9/Mines | Discovered new exit (range 5) 1199 | -9/Mines | Entered Exiles 1199 | -9/Exiles | Accompanied by 3 allies 1229 | -9/Exiles | Met 8R-AWN 1249 | -9/Exiles | Met EX-HEX 1288 | -9/Exiles | Met EX-BIN 1318 | -9/Exiles | Aligned with FarCom system 1319 | -9/Exiles | Given EX-Vault access code 1351 | -9/Exiles | Opened EX-Vault 1383 | -9/Exiles | Warned to stay clear of 0b10 Research branches 1419 | -9/Exiles | Met EX-DEC 1528 | -9/Exiles | Attacked by the Exiles 1548 | -9/Exiles | Self-destructed Last Messages --------------- 01537_ as-44318 destroyed. 01537_ Penetrated by HV Slug. 01537_ HV Slug penetrates Wall. 01540_ Penetrated by HV Slug. 01540_ HV Slug penetrates Wall. 01540_ Penetrated by HV Slug. 01540_ HV Slug penetrates Wall. 01542_ Penetrated by HV Slug. 01542_ HV Slug penetrates Wall. 01542_ Penetrated by HV Slug. 01542_ HV Slug penetrates Wall. 01543_ Aluminum Leg destroyed. 01544_ Penetrated by HV Slug. 01544_ HV Slug penetrates Wall. 01544_ Penetrated by HV Slug. 01544_ HV Slug penetrates Wall. 01546_ Penetrated by HV Slug. 01546_ HV Slug penetrates Wall. 01546_ Penetrated by HV Slug. 01546_ HV Slug penetrates Wall. Map ----- +----------------------------------------------------+ | """#?????????????????????????????????????????????? | | """#?????????????????????????????????????????????? | | """#?????????????????????????????????????????????? | | """#?????????????????????????????????????????????? | | """#?????????????????????????????????????????????? | | """#?????????????????????????????????????????????? | | """#?????????????????????????????????????????????? | | """#?????????????????????????????????????????????? | | """"?????????????????????????????????????????????? | | """#?????????????????????????????????????????????? | | """"?????????????????????????????????????????????? | | #?????????????????????????????????????????????? | | """#?????????????????????????????????????????????? | | ####?????????????????????????????????????????????? | | ?????????????????????????????????????????????????? | | ?????????????????????????????????????????????????? | | ?????????????????????????????????????????????????? | | #########????????????????????????????????????? | | """""""""##??????????????????????????????????? | | " """ """"##?????????????????????????????????# # | | "" " #???????????????????????????????## # | | " """#???????????????????????????????# | | " "#???????????#####???????????????# | | " "##?????????## #??????????????## | | ""###???????#" g=#?????????????## #? | | """#??????##" @%##????????????# #? | | "#????###=%!=*!###????????### #?? | | ##???# a* % ########## #?? | | ##?## aa #""""## #??? | | ### a * ##?? | | a ## * #?? | | #### ##? | | ""#?#""" "#### ## | | % #"""##?#######??#### * | | ######??????????????##### | | ##???????????????????????### | | " ##??????????????????????????### | | """ ""#?????????????????????????????### | | ""#" "##??????????????????????????????#" | | """##"""""""##???????????????????????????????#### | | """??#########???????????????????????????????????# | | #????????????????????????????????????????????????# | | ?????????????????????????????????????????????????? | | ?????????????????????????????????????????????????? | | ?????????????????????????????????????????????????? | | ?????????????????????????????????????????????????? | | ?????????????????????????????????????????????????? | | ?????????????????????????????????????????????????? | | ?????????????????????????????????????????????????? | | ?????????????????????????????????????????????????? | +----------------------------------------------------+ Best States ------------- Heat Dissipation 28 Energy Generation 10 Energy Capacity 250 Matter Stores 300 Matter Capacity 300 Sight Range 16 Terrain Scan Density 10 Armor Coverage 225 Evasion (%) 55 Item Schematics ----------------- None Robot Schematics ------------------ None Fabricated ------------ Nothing Repaired ---------- Nothing Alien Tech Used ----------------- None Achievements -------------- None Challenges ------------ None Game ------ Seed SmallServoBlaster Manual? 0 Play Time 00:14:27 Cumulative 188.1 hours Start 2025.07.25 @ 00:16:55 End 2025.07.25 @ 00:44:35 Sessions 1 Manual Loads 0 Difficulty Rogue Special Mode None Game No. 453 Rogue 453 Adventurer 0 Explorer 0 Win Type - Total 8 Types 6/0/1/1/0/0/0/0/0/0 Lore% 74 Gallery% 66 Achievement% 51 Wizard Run 0 Options --------- Layout 0 ASCII 0 Keyboard 0 Movement Numpad Keybinds 0 Fullscreen 2 Font 18/Terminus Map View 76x50 Zoom Use 0% Tactical HUD 1 Map Filters NONE Filters SATURATION(100) Steam 1 RUN: 8a82c49d-bfcc-47b0-9457-2c30f8769fe7